Cogmind - Beta 17 @@@ ROGUE MODE // 2026.07.25 @ 05:25:22 Player: AzzyWazzy Result: Self-destructed Performance ------------- Evolutions (2) 1000 Regions Visited (3) 600 Robots Destroyed (51) 255 Value Destroyed (1280) 1280 Prototype IDs (1) 20 Alien Tech Used (0) 0 Bonus (0) 0 TOTAL SCORE: 3155 Bonus ------- None Cogmind --------- Core Integrity 208/550 Matter 147/300 Energy 0/100 System Corruption 0% Temperature Cool (0) Movement Core (1650) Ox32 Location -8/Materials Parts ------- > --- POWER (2) -------- (None) > --- PROPULSION (2) --- (None) > --- UTILITY (4) ------ Huge Storage Unit ECM Suite > --- WEAPON (3) ------- Ion Cannon High-powered Shotgun Flak Cannon > --- INVENTORY (25) --- Particle Gun Peak State ------------ > --- POWER ------------ Light Ion Engine Light Deuterium Engine > --- PROPULSION ------- Wheel Wheel > --- UTILITY ---------- Huge Storage Unit Compact Matter Pod ECM Suite Medium Armor Plating > --- WEAPON ----------- Beam Rifle Advanced Beam Cannon Flak Cannon > --- INVENTORY -------- Aluminum Leg Aluminum Leg Wheel Flak Cannon [Rating: 21] Favorites ----------- Power Light Ion Engine Engine Light Ion Engine Power Core Light Nuclear Core Propulsion Wheel Leg Aluminum Leg Wheel Wheel Utility Huge Storage Unit Device ECM Suite Storage Huge Storage Unit Processor Signal Interpreter Protection Weapon Shielding Weapon Medium Laser Energy Gun Medium Laser Energy Cannon Advanced Beam Cannon Ballistic Gun Light Assault Rifle Ballistic Cannon Flak Cannon Build | -11 -10 -9 -8 ------- Run | Yrd Mat Mat Mat Slots Evolved 4 | . . 2 2 Power 1 | . . 1 . Propulsion . | . . . . Utility 2 | . . 1 1 Weapon 1 | . . . 1 Parts Attached 44 | 6 9 12 17 Power 9 | 1 2 3 3 Engine 8 | 1 2 3 2 Core 1 | . . . 1 Reactor . | . . . . Propulsion 12 | 3 1 4 4 Treads . | . . . . Leg 4 | 1 . 2 1 Wheel 8 | 2 1 2 3 Hover . | . . . . Flight . | . . . . Utility 9 | . 4 1 4 Device 1 | . . 1 . Storage 3 | . 2 . 1 Processor 2 | . 1 . 1 Hackware . | . . . . Protection 3 | . 1 . 2 Artifact . | . . . . Weapon 14 | 2 2 4 6 Energy Gun 4 | 1 . 3 . Energy Cannon 3 | . . 1 2 Ballistic Gun 5 | 1 2 . 2 Ballistic Cannon 2 | . . . 2 Launcher . | . . . . Special Weapon . | . . . . Impact Weapon . | . . . . Slashing Weapon . | . . . . Piercing Weapon . | . . . . Special Melee Weapon . | . . . . Unidentified Prototypes 1 | . . 1 . Parts Lost 15 | . 1 6 8 Power 4 | . . 2 2 Propulsion 6 | . 1 2 3 Utility 3 | . . 1 2 Weapon 2 | . . 1 1 Highest Loss Streak 5 | . 1 3 5 To Critical Strikes . | . . . . Average Backups 3 | 3 3 2 4 Power . | . 1 . . Propulsion 1 | 1 1 1 2 Utility . | . . . . Weapon 1 | . . 1 1 Tool/Special . | . . . . Unused Backups 1 | . 1 . . Power . | . . . . Propulsion . | . . . . Utility 1 | . 1 . . Weapon . | . . . . Tool/Special . | . . . . Average Slot Usage (%) 83 | . 97 63 89 Engine 14 | . 14 13 15 Wheel 18 | . 27 11 15 Device 3 | . . . 9 Storage 12 | . 13 11 12 Processor 1 | . 4 . 1 Protection 7 | . 8 5 6 Energy Gun 11 | . 14 13 7 Energy Cannon 3 | . . 1 8 Ballistic Gun 7 | . 14 5 3 Ballistic Cannon 2 | . . . 6 Peak Build Rating 21 | 5 7 10 21 Average Rating 10 | 2 6 6 17 On Entrance 5 | . 5 7 10 Avg Prop Armor Cover (%) . | . . . . Naked Turns . | . . . . Heaviest Build 111 | 9 90 93 111 Greatest Support 32 | 26 32 26 32 Greatest Overweight (x) 28 | . 5 28 10 Average Overweight (x) 4 | . 2 6 4 Largest Inventory Capacity 25 | 5 25 25 25 Average Capacity 24 | 5 24 25 25 Most Carried 7 | 5 5 4 7 Average Carried 3 | 3 3 2 4 Final Capacity 25 | 5 25 25 25 Final Carried 3 | 3 3 3 1 Class Distribution -------------------- 63% | Mutant 13% | Scavenger-Mutant 10% | Scavenger-Tank 6% | Scavenger-Gunner 4% | Tank Dominant Class ---------------- Mutant | -10/Materials Mutant | -9/Materials Scavenger-Tank | -8/Materials Resources | -11 -10 -9 -8 ----------- Run | Yrd Mat Mat Mat Matter Collected 1152 | 226 198 129 599 Remotely . | . . . . Salvage Created 1628 | . 221 460 947 Parts 93 | . 16 25 52 Haulers Intercepted 2 | . . . 2 Recyclers Shooed 5 | . . . 5 Parts Field Recycled . | . . . . Retrieved Matter . | . . . . Parts Self-Destructed . | . . . . Prevented . | . . . . Parts Restored . | . . . . Kills | -11 -10 -9 -8 ------- Run | Yrd Mat Mat Mat Combat Hostiles Destroyed 33 | . 8 10 15 Guns 23 | . 8 10 5 Cannons 10 | . . . 10 Classes Destroyed 10 | . 3 3 4 Worker 3 | . . 2 1 Builder 1 | . . . 1 Hauler 2 | . . . 2 Recycler 2 | . . . 2 Operator 1 | . . . 1 Watcher 9 | . 3 2 4 Swarmer 11 | . 6 2 3 Grunt 17 | . 2 5 10 Brawler 1 | . . 1 . Sentry 4 | . . 2 2 Best Kill Streak 6 | . 4 3 6 Combat Bots Only 4 | . 3 3 4 Max Kills in Single Turn 2 | . 1 2 1 Gunslinging 1 | . . 1 . Exploded . | . . . . Melee . | . . . . Uniques/NPCs Destroyed . | . . . . Combat | -11 -10 -9 -8 -------- Run | Yrd Mat Mat Mat Hostile Shots Fired 233 | . 35 97 101 Missed 60 | . 8 28 24 Hits 173 | . 27 69 77 Projectile 173 | . 27 69 77 Critical Strikes 4 | . . 1 3 Damage Taken 2314 | . 246 776 1292 Core 694 | . 49 303 342 Absorbed by Shields . | . . . . Redirected to Shielding 52 | . 12 40 . Core Remaining (%) 68 | 100 80 24 . Volleys Fired 154 | . 29 55 70 Largest 3 | . 2 2 3 Hottest 164 | . 70 108 164 Shots Fired 324 | . 58 103 163 Gun 217 | . 58 99 60 Cannon 107 | . . 4 103 Launcher . | . . . . Special . | . . . . Kinetic 118 | . 29 25 64 Thermal 206 | . 29 78 99 Explosive . | . . . . Electromagnetic . | . . . . Robot Hit Streak 9 | . 5 9 8 Robot Miss Streak 9 | . 3 4 9 Penetration Max . | . . . . Secondary Targets 5 | . 2 3 . Max Gunslinging Chain 1 | . 1 1 . Shots Hit Robots 188 | . 31 64 93 Core Hits 110 | . 16 24 70 Critical Kills 1 | . . . 1 Critical Parts Destroyed . | . . . . Critical Strikes 6 | . 1 3 2 Burn 5 | . 1 3 1 Meltdown 1 | . . . 1 Melee Attacks . | . . . . Impact . | . . . . Slashing . | . . . . Piercing . | . . . . Sneak Attacks . | . . . . Combat Hostiles . | . . . . Follow-up Attacks . | . . . . Damage Inflicted 2968 | . 389 802 1777 Guns 1628 | . 389 781 458 Cannons 1333 | . . 21 1312 Explosions . | . . . . Melee . | . . . . Ramming 7 | . . . 7 Kinetic 1071 | . 163 108 800 Thermal 1890 | . 226 694 970 Explosive . | . . . . Electromagnetic . | . . . . Impact . | . . . . Slashing . | . . . . Piercing . | . . . . Highest Corruption . | . . . . Average Corruption . | . . . . Corruption Purged . | . . . . Corruption Blocked . | . . . . Overload Shots . | . . . . Overflow Damage . | . . . . Projectiles . | . . . . Explosions . | . . . . Melee . | . . . . Knockbacks 8 | . . . 8 Impact . | . . . . Kinetic 8 | . . . 8 Secondary . | . . . . Self-Inflicted Damage 3 | . . . 3 Shots . | . . . . Rammed 1 | . . . 1 Targets Rammed 1 | . . . 1 Kicked . | . . . . Crushed . | . . . . Highest Temperature 742 | . 90 304 742 Average Temperature 157 | . 26 103 213 Received Heat Transfer 960 | . 30 318 612 Effects 46 | . . 1 45 Shutdowns 17 | . . . 17 Energy Bleed 3 | . . 1 2 Interference 5 | . . . 5 Matter Decay 2 | . . . 2 Short Circuit 4 | . . . 4 Damage (minor) 5 | . . . 5 Damage (major) 8 | . . . 8 Damage (core) 2 | . . . 2 Siege Activations . | . . . . Martial Activations . | . . . . Shielding Activations . | . . . . Robots Disrupted . | . . . . Combat Hostiles . | . . . . Robots Corrupted . | . . . . Combat Hostiles . | . . . . Parts Fried . | . . . . Impact Corruptions . | . . . . Robots Melted 1 | . . . 1 Combat Hostiles . | . . . . Parts Melted 8 | . 1 4 3 Heat Transferred 4657 | . 740 1991 1926 Parts Sabotaged . | . . . . Parts Stolen . | . . . . Parts Stripped . | . . . . Power Chain Reactions . | . . . . Alert | -11 -10 -9 -8 ------- Run | Yrd Mat Mat Mat Maximum Alert Level . | . . . . Low Security (%) 100 | 100 100 100 100 Level 1 . | . . . . Level 2 . | . . . . Level 3 . | . . . . Level 4 . | . . . . Level 5 . | . . . . High Security . | . . . . Max Security . | . . . . Peak Influence 113 | . 113 55 70 Initial . | . . . . Average 21 | . 25 14 25 Influence Increases 921 | . 222 254 445 Destroy 0b10 Robot/C 660 | . 160 200 300 Destroy 0b10 Robot/NC 90 | . 15 20 55 Destroy Leader 142 | . 46 34 62 Disable Machine 15 | . . . 15 Destroy Structure 14 | . 1 . 13 Influence Decreases 868 | . 222 254 392 Time Decay 738 | . 212 204 322 Lost Part 130 | . 10 50 70 Squads Dispatched 4 | . 2 1 1 Investigation 1 | . 1 . . Extermination . | . . . . Reinforcement 3 | . 1 1 1 Assault . | . . . . Garrison . | . . . . Intercept . | . . . . Searches Triggered . | . . . . Construction Impeded 1 | . . . 1 Haulers Reinforced . | . . . . Active Scanning Responses . | . . . . Cargo Convoy Interrupts . | . . . . Stealth | -11 -10 -9 -8 --------- Run | Yrd Mat Mat Mat Distress Signals 5 | . 2 2 1 Communications Jammed . | . . . . Distress Signals . | . . . . Times Spotted 59 | . 15 19 25 Peak Tracking Total 5 | . 3 5 4 Tactical Retreats 2 | . . . 2 ECM-based Alert Blocks 3 | . . . 3 Traps | -11 -10 -9 -8 ------- Run | Yrd Mat Mat Mat Traps Triggered 1 | . 1 . . Indirectly . | . . . . Trap Hack Attempts . | . . . . Triggered . | . . . . Disarmed . | . . . . Reprogrammed . | . . . . Reused . | . . . . Traps Extracted . | . . . . Installed . | . . . . Triggered . | . . . . Machines | -11 -10 -9 -8 ---------- Run | Yrd Mat Mat Mat Machines Disabled 1 | . . . 1 Max in Single Turn 1 | . . . 1 Machines Repaired . | . . . . Machines Dismantled . | . . . . Machines Sabotaged . | . . . . Overloaded Fab Kills . | . . . . Hacking | -11 -10 -9 -8 --------- Run | Yrd Mat Mat Mat Machines Accessed . | . . . . Terminals . | . . . . Fabricators . | . . . . Repair Stations . | . . . . Recycling Units . | . . . . Scanalyzers . | . . . . Garrison Access . | . . . . Total Hacks . | . . . . Successful . | . . . . Failed . | . . . . Catastrophic . | . . . . Database Lockouts . | . . . . Manual . | . . . . Terminals . | . . . . Fabricators . | . . . . Repair Stations . | . . . . Recycling Units . | . . . . Scanalyzers . | . . . . Garrison Access . | . . . . Terminal Hacks . | . . . . Fabricator Hacks . | . . . . Repair Station Hacks . | . . . . Recycling Unit Hacks . | . . . . Scanalyzer . | . . . . Garrison Access Hacks . | . . . . Unauthorized Hacks . | . . . . Terminals . | . . . . Fabricators . | . . . . Repair Stations . | . . . . Recycling Units . | . . . . Scanalyzers . | . . . . Garrison Access . | . . . . Data Cores Recovered 1 | . . . 1 Used . | . . . . Hacking Detections . | . . . . Full Trace Events . | . . . . Feedback Events . | . . . . Feedback Blocked . | . . . . Robot Schematics Acquired . | . . . . Robots Built . | . . . . Authchips . | . . . . Time . | . . . . Total Robot Build Rating . | . . . . Part Schematics Acquired . | . . . . Parts Built . | . . . . Authchips . | . . . . Time . | . . . . Total Part Build Rating . | . . . . Part Studies Acquired . | . . . . Parts Repaired . | . . . . Time . | . . . . Parts Recycled . | . . . . Recycled Matter . | . . . . Retrieved Matter . | . . . . Retrieved Components . | . . . . Parts Scanalyzed . | . . . . Part Schematics Acquired . | . . . . Parts Damaged . | . . . . Bothacking | -11 -10 -9 -8 ------------ Run | Yrd Mat Mat Mat Used RIF Installer . | . . . . Robots Hacked . | . . . . Non-combat . | . . . . Combat . | . . . . Robot Hacks Applied . | . . . . Relay Couplers Released . | . . . . Fabnet Peak Effective % . | . . . . Robots Rewired . | . . . . Allies Hacked . | . . . . Hacks Repelled . | . . . . Allies | -11 -10 -9 -8 -------- Run | Yrd Mat Mat Mat Total Allies . | . . . . Largest Group . | . . . . Highest-Rated Group . | . . . . Highest-Rated Ally . | . . . . Total Orders . | . . . . Ally Attacks . | . . . . Total Damage . | . . . . Kills . | . . . . Allies Corrupted . | . . . . Allies Melted . | . . . . Intel | -11 -10 -9 -8 ------- Run | Yrd Mat Mat Mat Active Infowar (turns) 787 | . . 42 745 ECM 787 | . . 42 745 Robot Analysis Total . | . . . . Derelict Logs Recovered . | . . . . Drone Launches . | . . . . Drone Recoveries . | . . . . Exploration | -11 -10 -9 -8 ------------- Run | Yrd Mat Mat Mat Turns Passed 2596 | 46 892 791 867 Spaces Moved 1008 | 38 449 197 324 Core 29 | 10 . 19 . Treads . | . . . . Legs 18 | 10 . . 8 Wheels 961 | 18 449 178 316 Hover . | . . . . Flight . | . . . . Fastest Speed 50 | 50 90 135 140 Average Speed 169 | 87 135 276 160 Slowest Speed 1450 | 120 175 1450 400 Overloaded Moves . | . . . . Propulsion Burnouts . | . . . . Robots Hopped . | . . . . Potential Cave-ins . | . . . . Cave-ins Triggered . | . . . . Exploration Rate (%) 29 | 4 70 21 24 Regions Visited 3 Branch Regions . Pre-discovered Areas . | . . . . Known Exits Taken . | . . . . Unknown Exits Taken 3 | 1 1 1 . Scrap Searched . | . . . . Spaces Dug . | . . . . Terrain Destroyed 12 | . . . 12 Melee . | . . . . Projectile 12 | . . . 12 AOE . | . . . . Terrain Rammed . | . . . . Walls Destroyed . | . . . . Machines Disabled . | . . . . Actions | -11 -10 -9 -8 --------- Run | Yrd Mat Mat Mat Total 1616 | 49 679 347 541 Wait 332 | . 175 69 88 Move 1005 | 37 448 196 324 Hop . | . . . . Pick Up 42 | 5 10 9 18 Fast Attach 4 | 4 . . . Attach 33 | 2 5 10 16 Detach 6 | . . 3 3 Swap 14 | . 5 3 6 Drop 25 | 1 7 2 15 Fire 154 | . 29 55 70 Melee . | . . . . Ram 1 | . . . 1 Kick . | . . . . Crush . | . . . . Escape Stasis . | . . . . Rewire . | . . . . Trap . | . . . . Miscellaneous . | . . . . Route ------- -11/Scrapyard -10/Materials (discovered 3 exits: *Mat x2 / [*Min]) -9/Materials (discovered 2 exits: [*Mat] / [*Min]) -8/Materials History --------- Turn | Location | Event 2 | -11/Scrapyard | Met Revision 17 8 | -11/Scrapyard | Discovered new exit (range 14) 47 | -11/Scrapyard | Entered Materials 301 | -10/Materials | Build established: Mutant 453 | -10/Materials | Discovered new exit (range 14) 481 | -10/Materials | Discovered new exit (range 6) 929 | -10/Materials | Discovered new exit (range 7) 939 | -10/Materials | Entered another Materials area 939 | -9/Materials | Evolved 2 slots: Power x1, Utility x1 1110 | -9/Materials | Lost 3 parts (1p2n) 1365 | -9/Materials | Core integrity fell below 50% 1582 | -9/Materials | Discovered new exit (range 6) 1628 | -9/Materials | Discovered new exit (range 15) 1730 | -9/Materials | Entered another Materials area 1730 | -8/Materials | Evolved 2 slots: Utility x1, Weapon x1 2376 | -8/Materials | Core integrity fell below 50% 2597 | -8/Materials | Lost 5 parts (2p2n1u) 2597 | -8/Materials | Self-destructed Last Messages --------------- G-47 Trooper destroyed. Acquired 48 matter. Acquired 23 matter. Acquired Particle Gun. Com. Wheel destroyed. A-02 Transporter destroyed. G-47 Trooper knocked back. Lgt. Nuclear Core destroyed. G-47 Trooper destroyed. Com. Wheel destroyed. R-06 Scavenger collects Particle Gun. G-50 Soldier destroyed. R-06 Scavenger collects Lgt. Angular Momentum Engine. R-06 Scavenger collects Hvy. Laser. Critical hit (Burn: +37). G-47 Trooper knocked back. R-06 Scavenger collects Carbon-fiber Leg. G-47 Trooper destroyed. [Achievement: Hey, That's Mine!] Map ----- +----------------------------------------------------+ | ????????????????????????## ####?????# # % | | ?????????????????????????# ?????????# ########## | | ?????????????????????????# ?????????# ########## | | ?????????????????????????# ?????????# ^ | | ?????????????????????????# ?????????# ^ | | ????????????????????????? ?????????#% ^ | | ????????????????????????? ??###????# ########## | | ?????????????????????????T ??# ??# #????????? | | ????????????????????????? ???# # #?????#### | | ????????????????????????? ???#"" ! + ####### | | ?????????????????????????#???#"T # * | | ?????????????????????????????#"" ??# !% | | ?????????????????????????????# ????# ! | | ?????????????????????????????#??????# ####### | | ????????????????????????????????????# #########+ | | ????????????????????????????????????# # | | ????????????????????????????????????# + """ | | ????????????????????????????????????# # ! """"" | | ????????????????????????????????????# # """"" | | ????????????????????????????????????# # ! """"" | | ????????????????????????????????????# # """ | | ??????????????###########?????#?????# # | | ??????????????# #######????## # | | ??????????????#! #* ####### ########+# | | ??????????????# #%] = #????????? | | ??????????????# /@[= *! #????????? | | ??????H???????# =#[] ==* #????????? | | ??????????????# # ==###########????????? | | ??????????????# = ## !!#######?????????????? | | ??????????????# ##*!%!!??????????????????? | | ??????????????############ !!###?????????????????? | | ?????????????????????????# !#???????????????????? | | ?????????????????????????# %#???????????????????? | | ?????????????????????????# %!#???????????????????? | | ?????????????????????????# [%#???????????????????? | | ????????????????????????? ???????????????????? | | ????????????????????????? ???????????????????? | | ????????????????????????# " +??????????????????? | | ????????????????????????# #??????????????????? | | ????????????????????????# #??????????????????? | | ????????????????????????###?##???????????????????? | | ?????????????????????????????????????????????????? | | ?????????????????????????????????????????????????? | | ?????????????????????????????????????????????????? | | ?????????????????????????????????????????????????? | | ?????????????????????????????????????????????????? | | ?????????????????????????????????????????????????? | | ?????????????????????????????????????????????????? | | ?????????????????????????????????????????????????? | | ?????????????????????????????????????????????????? | +----------------------------------------------------+ Best States ------------- Heat Dissipation 31 Energy Generation 19 Energy Capacity 250 Matter Stores 450 Matter Capacity 450 Sight Range 16 Terrain Scan Density 10 ECM Strength 1 Armor Coverage 225 Weapon Shielding 33 Evasion (%) 50 Item Schematics ----------------- None Robot Schematics ------------------ None Fabricated ------------ Nothing Repaired ---------- Nothing Studied --------- None Alien Tech Used ----------------- None Achievements -------------- Ghost 'Em Hey, That's Mine! It's Just You Storm Trooper You Again Challenges ------------ None Game ------ Seed DamperExplosiveSystem Manual? 0 Play Time 00:22:59 Cumulative 3.3 hours Start 2026.07.25 @ 05:02:39 End 2026.07.25 @ 05:25:22 Sessions 1 Manual Loads 0 Difficulty Rogue Special Mode None Game No. 7 Rogue 1 Adventurer 6 Explorer 0 Win Type - Total 0 Types 0/0/0/0/0/0/0/0/0/0 Lore% 3 Gallery% 6 Achievement% 10 Wizard Run 0 Options --------- Layout 1 ASCII 1 Keyboard 0 Movement Mouse Keybinds 0 Fullscreen 2 Font 24/Smallcaps Map View 50x35 Zoom Use 0% Tactical HUD 0 Map Filters NONE Filters NONE Steam 1 RUN: 23a1e6c3-b402-4c84-ae5e-a06b6291a25e